fUSD/lending_fUSD_20250308
["ID","MTS","AMOUNT","RATE_DAILY","PERIOD"]
[355661497,1741446644685,-150.1536953,8.493e-05,2]
[355661498,1741446644695,-537.17,8.493e-05,2]
[355661499,1741446644704,-515.4,8.493e-05,2]
[355661500,1741446644713,-500.0,8.493e-05,2]
[355661501,1741446644723,-500.0,8.493e-05,2]
[355661502,1741446644732,-500.0,8.493e-05,2]
[355661503,1741446644742,-619.77,8.493e-05,2]
[355661504,1741446644751,-500.0,8.493e-05,2]
[355661505,1741446644761,-500.0,8.493e-05,2]
[355661506,1741446644770,-500.0,8.493e-05,2]
[355661507,1741446644779,-1329.51,8.493e-05,2]
[355661508,1741446644788,-656.82,8.493e-05,2]
[355661509,1741446644798,-528.79,8.493e-05,2]
[355661510,1741446644808,-500.0,8.493e-05,2]
[355661511,1741446644817,-500.0,8.493e-05,2]
[355661512,1741446644829,-500.0,8.493e-05,2]
[355661513,1741446644840,-500.0,8.493e-05,2]
[355661514,1741446644850,-725.15,8.493e-05,2]
[355661515,1741446644860,-500.0,8.493e-05,2]
[355661516,1741446644871,-845.02,8.493e-05,2]
[355661517,1741446644881,-500.0,8.493e-05,2]
[355661518,1741446644891,-500.0,8.493e-05,2]
[355661519,1741446644901,-500.0,8.493e-05,2]
[355661520,1741446644911,-500.0,8.493e-05,2]
[355661521,1741446644921,-500.0,8.493e-05,2]
[355661522,1741446644931,-500.0,8.493e-05,2]
[355661523,1741446644941,-750.04,8.493e-05,2]
[355661524,1741446644951,-861.7,8.493e-05,2]
[355661525,1741446644961,-500.0,8.493e-05,2]
[355661526,1741446644971,-500.0,8.493e-05,2]
[355661527,1741446644980,-500.0,8.493e-05,2]
[355661528,1741446644990,-612.87,8.493e-05,2]
[355661529,1741446645000,-500.0,8.493e-05,2]
[355661530,1741446645010,-605.5,8.493e-05,2]
[355661531,1741446645020,-500.0,8.493e-05,2]
[355661532,1741446645030,-940.88,8.493e-05,2]
[355661533,1741446645040,-500.0,8.493e-05,2]
[355661534,1741446645050,-552.7,8.493e-05,2]
[355661535,1741446645059,-500.0,8.493e-05,2]
[355661536,1741446645068,-679.12,8.493e-05,2]
[355661537,1741446645078,-808.91,8.493e-05,2]
[355661538,1741446645088,-500.0,8.493e-05,2]
[355661539,1741446645101,-500.0,8.493e-05,2]
[355661540,1741446645110,-500.0,8.493e-05,2]
[355661541,1741446645120,-500.0,8.493e-05,2]
[355661542,1741446645129,-500.0,8.493e-05,2]
[355661543,1741446645139,-500.0,8.493e-05,2]
[355661544,1741446645149,-597.17,8.493e-05,2]
[355661545,1741446645161,-500.0,8.493e-05,2]
[355661546,1741446645171,-500.0,8.493e-05,2]
[355661547,1741446645181,-500.0,8.493e-05,2]
[355661548,1741446645194,-500.0,8.493e-05,2]
[355661549,1741446645204,-500.0,8.493e-05,2]
[355661550,1741446645213,-500.0,8.493e-05,2]
[355661551,1741446645222,-500.0,8.493e-05,2]
[355661552,1741446645235,-684.8,8.493e-05,2]
[355661553,1741446645245,-500.0,8.493e-05,2]
[355661554,1741446645254,-603.17,8.493e-05,2]
[355661555,1741446645263,-500.0,8.493e-05,2]
[355661556,1741446645272,-538.61,8.493e-05,2]
[355661557,1741446645282,-523.8,8.493e-05,2]
[355661558,1741446645291,-500.0,8.493e-05,2]
[355661559,1741446645301,-734.33,8.493e-05,2]
[355661560,1741446645310,-500.0,8.493e-05,2]
[355661561,1741446645320,-500.0,8.493e-05,2]
[355661562,1741446645329,-500.0,8.493e-05,2]
[355661563,1741446645339,-500.0,8.493e-05,2]
[355661564,1741446645348,-647.36,8.493e-05,2]
[355661565,1741446645357,-501.68254505,8.493e-05,2]
[355661566,1741446645366,-703.82,8.493e-05,2]
[355661567,1741446645376,-500.0,8.493e-05,2]
[355661568,1741446645386,-500.0,8.493e-05,2]
[355661569,1741446645395,-500.0,8.493e-05,2]
[355661570,1741446645405,-500.0,8.493e-05,2]
[355661571,1741446645414,-597.5,8.493e-05,2]
[355661572,1741446645423,-500.0,8.493e-05,2]
[355661574,1741446645433,-500.0,8.493e-05,2]
[355661576,1741446645442,-500.0,8.493e-05,2]
[355661578,1741446645451,-500.0,8.493e-05,2]
[355661580,1741446645460,-500.0,8.493e-05,2]
[355661582,1741446645470,-1034.42,8.493e-05,2]
[355661583,1741446645479,-500.0,8.493e-05,2]
[355661584,1741446645488,-500.0,8.493e-05,2]
[355661585,1741446645498,-840.2,8.493e-05,2]
[355661586,1741446645507,-500.0,8.493e-05,2]
[355661587,1741446645517,-335.08089028,8.493e-05,2]
[355661588,1741446645526,-537.19,8.493e-05,2]
[355661589,1741446645536,-519.27,8.493e-05,2]
[355661590,1741446645545,-500.0,8.493e-05,2]
[355661591,1741446645555,-698.43,8.493e-05,2]
[355661592,1741446645565,-971.9,8.493e-05,2]
[355661593,1741446645574,-860.51,8.493e-05,2]
[355661594,1741446645584,-1076.74,8.493e-05,2]
[355661595,1741446645595,-500.0,8.493e-05,2]
[355661596,1741446645605,-500.0,8.493e-05,2]
[355661597,1741446645614,-500.0,8.493e-05,2]
[355661598,1741446645624,-500.0,8.493e-05,2]
[355661599,1741446645634,-1006.12,8.493e-05,2]
[355661600,1741446645645,-896.64,8.493e-05,2]
[355661601,1741446645654,-500.0,8.493e-05,2]
[355661602,1741446645664,-990.37,8.493e-05,2]
[355661603,1741446645674,-630.4,8.493e-05,2]
[355661604,1741446645684,-1115.53,8.493e-05,2]
[355661605,1741446645693,-500.0,8.493e-05,2]
[355661606,1741446645703,-890.74,8.493e-05,2]
[355661607,1741446645713,-500.0,8.493e-05,2]
[355661608,1741446645723,-952.14,8.493e-05,2]
[355661609,1741446645733,-500.0,8.493e-05,2]
[355661610,1741446645743,-651.07,8.493e-05,2]
[355661611,1741446645753,-500.0,8.493e-05,2]
[355661612,1741446645763,-916.97,8.493e-05,2]
[355661613,1741446645773,-500.0,8.493e-05,2]
[355661614,1741446645783,-500.0,8.493e-05,2]
[355661615,1741446645792,-1200.33,8.493e-05,2]
[355661616,1741446645802,-1245.04,8.493e-05,2]
[355661617,1741446645812,-500.0,8.493e-05,2]
[355661618,1741446645822,-500.0,8.493e-05,2]
[355661619,1741446645832,-585.65,8.493e-05,2]
[355661620,1741446645841,-1162.82,8.493e-05,2]
[355661621,1741446645855,-500.0,8.493e-05,2]
[355661622,1741446645864,-501.66,8.493e-05,2]
[355661623,1741446645873,-1042.26,8.493e-05,2]
[355661624,1741446645883,-579.55,8.493e-05,2]
[355661625,1741446645892,-500.0,8.493e-05,2]
[355661626,1741446645902,-549.35,8.493e-05,2]
[355661627,1741446645912,-547.06569288,8.493e-05,2]
[355661628,1741446645922,-500.0,8.493e-05,2]
[355661629,1741446645933,-650.85,8.493e-05,2]
[355661631,1741446645942,-500.0,8.493e-05,2]
[355661633,1741446645952,-963.61,8.493e-05,2]
[355661634,1741446645962,-500.0,8.493e-05,2]
[355661635,1741446645971,-792.47,8.493e-05,2]
[355661636,1741446645981,-633.41,8.493e-05,2]
[355661637,1741446645991,-1253.44,8.493e-05,2]
[355661638,1741446646000,-586.42,8.493e-05,2]
[355661639,1741446646010,-500.0,8.493e-05,2]
[355661640,1741446646019,-578.57,8.493e-05,2]
[355661641,1741446646029,-2224.71,8.493e-05,2]
[355661642,1741446646040,-864.36,8.493e-05,2]
[355661643,1741446646050,-500.0,8.493e-05,2]
[355661644,1741446646059,-2083.12,8.493e-05,2]
[355661645,1741446646068,-6852.79,8.493e-05,2]
[355661646,1741446646078,-882.64,8.493e-05,2]
[355661647,1741446646088,-9943.09,8.493e-05,2]
[355661648,1741446646097,-500.0,8.493e-05,2]
[355661649,1741446646107,-841.33,8.493e-05,2]
[355661650,1741446646117,-2354.42,8.493e-05,2]
[355661651,1741446646126,-1442.37,8.493e-05,2]
[355661652,1741446646136,-1734.17,8.493e-05,2]
[355661653,1741446646145,-773.96,8.493e-05,2]
[355661654,1741446646156,-500.0,8.493e-05,2]
[355661655,1741446646167,-500.0,8.493e-05,2]
[355661656,1741446646177,-1101.28,8.493e-05,2]
[355661657,1741446646187,-500.0,8.493e-05,2]
[355661658,1741446646199,-500.0,8.493e-05,2]
[355661659,1741446646208,-5042.13,8.493e-05,2]
[355661660,1741446646218,-594.4,8.493e-05,2]
[355661661,1741446646228,-4139.0,8.493e-05,2]
[355661662,1741446646239,-627.02,8.493e-05,2]
[355661663,1741446646249,-855.4,8.493e-05,2]
[355661664,1741446646259,-2225.22,8.493e-05,2]
[355661665,1741446646269,-500.0,8.493e-05,2]
[355661666,1741446646279,-1003.48,8.493e-05,2]
[355661667,1741446646288,-1041.41,8.493e-05,2]
[355661668,1741446646299,-3456.85,8.493e-05,2]
[355661669,1741446646308,-1874.74,8.493e-05,2]
[355661670,1741446646319,-507.29,8.493e-05,2]
[355661671,1741446646329,-2411.52,8.493e-05,2]
[355661672,1741446646338,-1414.87,8.493e-05,2]
[355661673,1741446646348,-652.26,8.493e-05,2]
[355661674,1741446646358,-18731.69,8.493e-05,2]
[355661675,1741446646367,-879.88,8.493e-05,2]
[355661676,1741446646377,-500.0,8.493e-05,2]
[355661677,1741446646388,-2387.01,8.493e-05,2]
[355661678,1741446646398,-1562.11,8.493e-05,2]
[355661679,1741446646407,-631.73,8.493e-05,2]
[355661680,1741446646418,-1387.09,8.493e-05,2]
[355661681,1741446646428,-500.0,8.493e-05,2]
[355661682,1741446646438,-500.0,8.493e-05,2]
[355661683,1741446646451,-1680.87,8.493e-05,2]
[355661684,1741446646460,-778.74,8.493e-05,2]
[355661685,1741446646470,-644.99,8.493e-05,2]
[355661686,1741446646480,-1964.21,8.493e-05,2]
[355661687,1741446646490,-1755.99,8.493e-05,2]
[355661688,1741446646500,-553.09,8.493e-05,2]
[355661689,1741446646509,-1497.39,8.493e-05,2]
[355661690,1741446646519,-500.0,8.493e-05,2]
[355661691,1741446646528,-527.72,8.493e-05,2]
[355661692,1741446646538,-2235.53,8.493e-05,2]
[355661693,1741446646547,-566.58,8.493e-05,2]
[355661694,1741446646557,-632.67,8.493e-05,2]
[355661695,1741446646566,-2769.7,8.493e-05,2]
[355661696,1741446646575,-1357.3,8.493e-05,2]
[355661697,1741446646585,-500.0,8.493e-05,2]
[355661698,1741446646595,-1590.98,8.493e-05,2]
[355661699,1741446646604,-1037.89,8.493e-05,2]
[355661700,1741446646614,-1347.66,8.493e-05,2]
[355661701,1741446646623,-500.0,8.493e-05,2]
[355661702,1741446646632,-500.0,8.493e-05,2]
[355661703,1741446646642,-500.0,8.493e-05,2]
[355661704,1741446646652,-786.54,8.493e-05,2]
[355661705,1741446646661,-500.0,8.493e-05,2]
[355661706,1741446646671,-1863.08,8.493e-05,2]
[355661707,1741446646680,-500.0,8.493e-05,2]
[355661708,1741446646871,-1535.29,8.493e-05,2]
[355661709,1741446646882,-2515.6,8.493e-05,2]
[355661710,1741446646892,-500.0,8.493e-05,2]
[355661711,1741446646902,-1075.32,8.493e-05,2]
[355661712,1741446646911,-6133.09,8.493e-05,2]
[355661713,1741446646921,-785.85,8.493e-05,2]
[355661714,1741446646932,-1595.58,8.493e-05,2]
[355661715,1741446646941,-1347.38,8.493e-05,2]
[355661716,1741446646951,-1222.18,8.493e-05,2]
[355661717,1741446646961,-1497.11,8.493e-05,2]
[355661718,1741446646971,-1213.55,8.493e-05,2]
[355661719,1741446646980,-500.0,8.493e-05,2]
[355661720,1741446646991,-500.0,8.493e-05,2]
[355661721,1741446647001,-500.0,8.493e-05,2]
[355661722,1741446647011,-500.0,8.493e-05,2]
[355661723,1741446647022,-2879.6,8.493e-05,2]
[355661724,1741446647031,-1350.39,8.493e-05,2]
[355661725,1741446647041,-1051.85,8.493e-05,2]
[355661726,1741446647050,-500.0,8.493e-05,2]
[355661727,1741446647060,-4631.77,8.493e-05,2]
[355661728,1741446647069,-2984.49,8.493e-05,2]
[355661729,1741446647079,-572.79,8.493e-05,2]
[355661730,1741446647088,-2171.47,8.493e-05,2]
[355661731,1741446647097,-887.2,8.493e-05,2]
[355661732,1741446647107,-867.84,8.493e-05,2]
[355661733,1741446647116,-2262.85,8.493e-05,2]
[355661734,1741446647125,-1157.52,8.493e-05,2]
[355661735,1741446647135,-500.0,8.493e-05,2]
[355661736,1741446647144,-3584.31,8.493e-05,2]
[355661737,1741446647153,-1492.93,8.493e-05,2]
[355661738,1741446647167,-1382.87,8.493e-05,2]
[355661739,1741446647176,-1319.49,8.493e-05,2]
[355661740,1741446647185,-6222.61,8.493e-05,2]
[355661741,1741446647194,-200.63187546,8.493e-05,2]
[355661742,1741446647203,-2187.41,8.493e-05,2]
[355661743,1741446647212,-3089.68,8.493e-05,2]
[355661744,1741446647221,-752.18,8.493e-05,2]
[355661745,1741446647231,-789.79,8.493e-05,2]
[355661746,1741446647241,-7135.9,8.493e-05,2]
[355661747,1741446647251,-1011.66,8.493e-05,2]
[355661748,1741446647261,-935.65,8.493e-05,2]
[355661749,1741446647270,-605.23,8.493e-05,2]
[355661750,1741446647280,-2586.02,8.493e-05,2]
[355661751,1741446647290,-567.75,8.493e-05,2]
[355661752,1741446647299,-1687.87,8.493e-05,2]
[355661753,1741446647309,-2773.91,8.493e-05,2]
[355661754,1741446647318,-500.0,8.493e-05,2]
[355661755,1741446647328,-2234.16,8.493e-05,2]
[355661756,1741446647337,-500.0,8.493e-05,2]
[355661757,1741446647346,-1286.66,8.493e-05,2]
[355661758,1741446647359,-3065.33,8.493e-05,2]
[355661759,1741446647369,-1873.66,8.493e-05,2]
[355661760,1741446647380,-872.98,8.493e-05,2]
[355661761,1741446647390,-3353.44,8.493e-05,2]
[355661762,1741446647400,-500.0,8.493e-05,2]
[355661763,1741446647411,-500.0,8.493e-05,2]
[355661764,1741446647421,-1313.25,8.493e-05,2]
[355661765,1741446647432,-1263.26,8.493e-05,2]
[355661766,1741446647443,-12466.06,8.493e-05,2]
[355661767,1741446647452,-1787.93,8.493e-05,2]
[355661768,1741446647462,-500.0,8.493e-05,2]
[355661769,1741446647471,-2452.64,8.493e-05,2]
[355661770,1741446647481,-500.0,8.493e-05,2]
[355661771,1741446647490,-3102.63,8.493e-05,2]
[355661772,1741446647500,-1882.29,8.493e-05,2]
[355661773,1741446647510,-500.0,8.493e-05,2]
[355661774,1741446647520,-6667.27,8.493e-05,2]
[355661775,1741446647530,-3597.03,8.493e-05,2]
[355661776,1741446647540,-1466.47,8.493e-05,2]
[355661777,1741446647549,-500.0,8.493e-05,2]
[355661778,1741446647558,-748.39,8.493e-05,2]
[355661779,1741446647567,-750.88,8.493e-05,2]
[355661780,1741446647577,-500.0,8.493e-05,2]
[355661781,1741446647587,-574.49210668,8.493e-05,2]
[355661782,1741446647596,-3171.58,8.493e-05,2]
[355661783,1741446647606,-2528.21,8.493e-05,2]
[355661784,1741446647615,-11873.2,8.493e-05,2]
[355661785,1741446647625,-767.32,8.493e-05,2]
[355661787,1741446647634,-6682.02,8.493e-05,2]
[355661788,1741446647643,-998.16,8.493e-05,2]
[355661789,1741446647654,-500.0,8.493e-05,2]
[355661790,1741446647663,-2317.51,8.493e-05,2]
[355661791,1741446647673,-2878.83,8.493e-05,2]
[355661792,1741446647682,-1595.81,8.493e-05,2]
[355661793,1741446647692,-809.06,8.493e-05,2]
[355661794,1741446647701,-715.74,8.493e-05,2]
[355661795,1741446647710,-500.0,8.493e-05,2]
[355661796,1741446647719,-1060.31,8.493e-05,2]
[355661797,1741446647728,-3137.33,8.493e-05,2]
[355661798,1741446647738,-500.0,8.493e-05,2]
[355661799,1741446647747,-2049.09,8.493e-05,2]
[355661800,1741446647756,-6268.69,8.493e-05,2]
[355661801,1741446647766,-661.24,8.493e-05,2]
[355661802,1741446647775,-3241.15,8.493e-05,2]
[355661803,1741446647785,-520.51,8.493e-05,2]
[355661804,1741446647794,-977.94,8.493e-05,2]
[355661805,1741446647804,-5930.3,8.493e-05,2]
[355661806,1741446647813,-500.0,8.493e-05,2]
[355661807,1741446647822,-947.73,8.493e-05,2]
[355661808,1741446647831,-534.17,8.493e-05,2]
[355661809,1741446647841,-500.0,8.493e-05,2]
[355661810,1741446647850,-530.59,8.493e-05,2]
[355661811,1741446647859,-500.0,8.493e-05,2]
[355661812,1741446647869,-1518.87,8.493e-05,2]
[355661813,1741446647878,-29965.23,8.493e-05,2]
[355661814,1741446647887,-500.0,8.493e-05,2]
[355661815,1741446647898,-500.0,8.493e-05,2]
[355661816,1741446647908,-909.15,8.493e-05,2]
[355661817,1741446647917,-1521.6,8.5e-05,2]
[355661818,1741446647927,-406.76,8.526e-05,2]
[355661819,1741446647937,-433.64969305,8.53e-05,2]
[355661820,1741446647947,-886.2156893,8.572e-05,2]
[355661821,1741446647957,-886.2156893,8.642e-05,2]
[355661822,1741446647968,-1537.0,8.67e-05,2]
[355661823,1741446647978,-886.2156893,8.713e-05,2]
[355661824,1741446647987,-500.0,8.767e-05,2]
[355661825,1741446647997,-500.0,8.767e-05,2]
[355661826,1741446648006,-500.0,8.767e-05,2]
[355661827,1741446648016,-500.0,8.767e-05,2]
[355661828,1741446648026,-500.0,8.767e-05,2]
[355661829,1741446648036,-500.0,8.767e-05,2]
[355661830,1741446648046,-500.0,8.767e-05,2]
[355661831,1741446648056,-500.0,8.767e-05,2]
[355661832,1741446648066,-500.0,8.767e-05,2]
[355661833,1741446648075,-500.0,8.767e-05,2]
[355661834,1741446648085,-500.0,8.767e-05,2]
[355661835,1741446648095,-500.0,8.767e-05,2]
[355661836,1741446648105,-735.61,8.767e-05,2]
[355661837,1741446648115,-623.78,8.767e-05,2]
[355661838,1741446648126,-500.0,8.767e-05,2]
[355661839,1741446648136,-500.0,8.767e-05,2]
[355661840,1741446648147,-500.0,8.767e-05,2]
[355661841,1741446648161,-500.0,8.767e-05,2]
[355661842,1741446648171,-500.0,8.767e-05,2]
[355661843,1741446648181,-500.0,8.767e-05,2]
[355661844,1741446648191,-395.54230687,8.767e-05,2]
[355661845,1741446648203,-500.0,8.767e-05,2]
[355661846,1741446648213,-500.0,8.767e-05,2]
[355661847,1741446648223,-500.0,8.767e-05,2]
[355661848,1741446648233,-150.096753,8.767e-05,2]
[355661849,1741446648244,-500.0,8.767e-05,2]
[355661850,1741446648254,-516.61,8.767e-05,2]
[355661851,1741446648264,-546.602339,8.767e-05,2]
[355661852,1741446648274,-500.0,8.767e-05,2]
[355661853,1741446648284,-500.0,8.767e-05,2]
[355661854,1741446648293,-1342.46,8.767e-05,2]
[355661855,1741446648304,-500.0,8.767e-05,2]
[355661856,1741446648313,-500.0,8.767e-05,2]
[355661857,1741446648323,-500.0,8.767e-05,2]
[355661858,1741446648333,-1333.21,8.767e-05,2]
[355661859,1741446648342,-500.0,8.767e-05,2]
[355661860,1741446648352,-500.0,8.767e-05,2]
[355661861,1741446648361,-539.75,8.767e-05,2]
[355661862,1741446648371,-500.0,8.767e-05,2]
[355661863,1741446648380,-394.09024325,8.767e-05,2]
[355661864,1741446648390,-500.0,8.767e-05,2]
[355661865,1741446648402,-500.0,8.767e-05,2]
[355661866,1741446648412,-500.0,8.767e-05,2]
[355661867,1741446648421,-523.52,8.767e-05,2]
[355661868,1741446648432,-430.666975,8.767e-05,2]
[355661869,1741446648441,-537.17,8.767e-05,2]
[355661870,1741446648451,-515.4,8.767e-05,2]
[355661871,1741446648460,-500.0,8.767e-05,2]
[355661872,1741446648470,-500.0,8.767e-05,2]
[355661873,1741446648479,-500.0,8.767e-05,2]
[355661874,1741446648489,-619.77,8.767e-05,2]
[355661875,1741446648499,-500.0,8.767e-05,2]
[355661876,1741446648508,-500.0,8.767e-05,2]
[355661877,1741446648517,-500.0,8.767e-05,2]
[355661878,1741446648527,-1329.51,8.767e-05,2]
[355661879,1741446648537,-656.82,8.767e-05,2]
[355661880,1741446648546,-528.79,8.767e-05,2]
[355661881,1741446648556,-500.0,8.767e-05,2]
[355661882,1741446648565,-500.0,8.767e-05,2]
[355661883,1741446648575,-500.0,8.767e-05,2]
[355661884,1741446648585,-500.0,8.767e-05,2]
[355661885,1741446648594,-725.15,8.767e-05,2]
[355661886,1741446648604,-500.0,8.767e-05,2]
[355661887,1741446648614,-845.02,8.767e-05,2]
[355661888,1741446648623,-500.0,8.767e-05,2]
[355661889,1741446648632,-500.0,8.767e-05,2]
[355661890,1741446648640,-500.0,8.767e-05,2]
[355661891,1741446648651,-500.0,8.767e-05,2]
[355661892,1741446648661,-500.0,8.767e-05,2]
[355661893,1741446648671,-500.0,8.767e-05,2]
[355661894,1741446648680,-750.04,8.767e-05,2]
[355661895,1741446648689,-861.7,8.767e-05,2]
[355661896,1741446648699,-500.0,8.767e-05,2]
[355661897,1741446648708,-500.0,8.767e-05,2]
[355661898,1741446648718,-500.0,8.767e-05,2]
[355661899,1741446648727,-612.87,8.767e-05,2]
[355661900,1741446648736,-500.0,8.767e-05,2]
[355661901,1741446648746,-605.5,8.767e-05,2]
[355661902,1741446648755,-500.0,8.767e-05,2]
[355661903,1741446648764,-940.88,8.767e-05,2]
[355661904,1741446648774,-500.0,8.767e-05,2]
[355661905,1741446648784,-552.7,8.767e-05,2]
[355661906,1741446648793,-500.0,8.767e-05,2]
[355661907,1741446648803,-679.12,8.767e-05,2]
[355661908,1741446648812,-808.91,8.767e-05,2]
[355661909,1741446648822,-500.0,8.767e-05,2]
[355661910,1741446648831,-500.0,8.767e-05,2]
[355661911,1741446648840,-500.0,8.767e-05,2]
[355661912,1741446648850,-500.0,8.767e-05,2]
[355661913,1741446648859,-500.0,8.767e-05,2]
[355661914,1741446648869,-500.0,8.767e-05,2]
[355661915,1741446648878,-597.17,8.767e-05,2]
[355661916,1741446648888,-500.0,8.767e-05,2]
[355661917,1741446648898,-500.0,8.767e-05,2]
[355661918,1741446648907,-500.0,8.767e-05,2]
[355661919,1741446648917,-500.0,8.767e-05,2]
[355661920,1741446648926,-500.0,8.767e-05,2]
[355661921,1741446648936,-500.0,8.767e-05,2]
[355661922,1741446648947,-500.0,8.767e-05,2]
[355661923,1741446648957,-684.8,8.767e-05,2]
[355661924,1741446648967,-500.0,8.767e-05,2]
[355661925,1741446648976,-603.17,8.767e-05,2]
[355661926,1741446648986,-500.0,8.767e-05,2]
[355661927,1741446648995,-538.61,8.767e-05,2]
[355661928,1741446649005,-523.8,8.767e-05,2]
[355661929,1741446649014,-500.0,8.767e-05,2]
[355661930,1741446649024,-734.33,8.767e-05,2]
[355661931,1741446649034,-500.0,8.767e-05,2]
[355661932,1741446649043,-500.0,8.767e-05,2]
[355661933,1741446649053,-500.0,8.767e-05,2]
[355661934,1741446649063,-500.0,8.767e-05,2]
[355661935,1741446649072,-647.36,8.767e-05,2]
[355661936,1741446649082,-703.82,8.767e-05,2]
[355661937,1741446649092,-500.0,8.767e-05,2]
[355661938,1741446649101,-500.0,8.767e-05,2]
[355661939,1741446649111,-500.0,8.767e-05,2]
[355661940,1741446649121,-500.0,8.767e-05,2]
[355661941,1741446649131,-597.5,8.767e-05,2]
[355661942,1741446649140,-500.0,8.767e-05,2]
[355661943,1741446649152,-500.0,8.767e-05,2]
[355661944,1741446649170,-500.0,8.767e-05,2]
[355661945,1741446649180,-500.0,8.767e-05,2]
[355661946,1741446649190,-500.0,8.767e-05,2]
[355661947,1741446649200,-1034.42,8.767e-05,2]
[355661948,1741446649211,-500.0,8.767e-05,2]
[355661949,1741446649222,-500.0,8.767e-05,2]
[355661950,1741446649233,-840.2,8.767e-05,2]
[355661951,1741446649243,-500.0,8.767e-05,2]
[355661952,1741446649254,-537.19,8.767e-05,2]
[355661953,1741446649264,-519.27,8.767e-05,2]
[355661954,1741446649273,-398.62251826,8.767e-05,2]
[355661955,1741446649282,-698.43,8.767e-05,2]
[355661956,1741446649292,-971.9,8.767e-05,2]
[355661957,1741446649302,-860.51,8.767e-05,2]
[355661958,1741446649312,-1076.74,8.767e-05,2]
[355661959,1741446649321,-500.0,8.767e-05,2]
[355661960,1741446649331,-500.0,8.767e-05,2]
[355661961,1741446649340,-500.0,8.767e-05,2]
[355661962,1741446649350,-500.0,8.767e-05,2]
[355661963,1741446649360,-1006.12,8.767e-05,2]
[355661964,1741446649370,-896.64,8.767e-05,2]
[355661965,1741446649379,-500.0,8.767e-05,2]
[355661966,1741446649388,-990.37,8.767e-05,2]
[355661967,1741446649398,-630.4,8.767e-05,2]
[355661968,1741446649408,-1115.53,8.767e-05,2]
[355661969,1741446649418,-500.0,8.767e-05,2]
[355661970,1741446649427,-890.74,8.767e-05,2]
[355661971,1741446649437,-500.0,8.767e-05,2]
[355661972,1741446649447,-952.14,8.767e-05,2]
[355661973,1741446649456,-500.0,8.767e-05,2]
[355661974,1741446649465,-651.07,8.767e-05,2]
[355661975,1741446649475,-500.0,8.767e-05,2]
[355661976,1741446649484,-916.97,8.767e-05,2]
[355661977,1741446649494,-500.0,8.767e-05,2]
[355661978,1741446649503,-500.0,8.767e-05,2]
[355661979,1741446649513,-1200.33,8.767e-05,2]
[355661980,1741446649522,-1245.04,8.767e-05,2]
[355661981,1741446649531,-500.0,8.767e-05,2]
[355661982,1741446649541,-585.65,8.767e-05,2]
[355661983,1741446649550,-1162.82,8.767e-05,2]
[355661984,1741446649560,-500.0,8.767e-05,2]
[355661985,1741446649569,-501.66,8.767e-05,2]
[355661986,1741446649579,-1042.26,8.767e-05,2]
[355661987,1741446649588,-579.55,8.767e-05,2]
[355661988,1741446649597,-500.0,8.767e-05,2]
[355661989,1741446649607,-549.35,8.767e-05,2]
[355661990,1741446649624,-500.0,8.767e-05,2]
[355661991,1741446649633,-650.85,8.767e-05,2]
[355661992,1741446649641,-500.0,8.767e-05,2]
[355661993,1741446649651,-963.61,8.767e-05,2]
[355661994,1741446649661,-500.0,8.767e-05,2]
[355661995,1741446649670,-792.47,8.767e-05,2]
[355661996,1741446649680,-633.41,8.767e-05,2]
[355661997,1741446649690,-1253.44,8.767e-05,2]
[355661998,1741446649699,-586.42,8.767e-05,2]
[355661999,1741446649709,-500.0,8.767e-05,2]
[355662000,1741446649719,-578.57,8.767e-05,2]
[355662001,1741446649728,-2224.71,8.767e-05,2]
[355662002,1741446649737,-864.36,8.767e-05,2]
[355662003,1741446649747,-500.0,8.767e-05,2]
[355662004,1741446649757,-2083.12,8.767e-05,2]